[Event "Titled Tuesday Blitz April 26 Late 2022"]
[White "Sarana, Alexey"]
[Black "Kollars, Dmitrij"]
[WhiteFideId "24133795"]
[BlackFideId "12909572"]
[WhiteElo "2666"]
[BlackElo "2584"]
[Result "0-1"]
[Round "08"]
[TimeControl "180+1"]
[Date "2022.04.26"]
[WhiteClock "0:00:10"]
[BlackClock "0:00:06"]

1. d4 {[%clk 0:03:00]}  Nf6 {[%clk 0:02:59]} 2. c4 {[%clk 0:03:01]}  e6 {[%clk 0:03:00]} 3. Nc3 {[%clk 0:03:02]}  Bb4 {[%clk 0:03:00]} 4. e3 {[%clk 0:03:02]}  O-O {[%clk 0:02:59]} 5. Bd3 {[%clk 0:03:03]}  d5 {[%clk 0:03:00]} 6. a3 {[%clk 0:03:03]}  dxc4 {[%clk 0:02:49]} 7. Bxc4 {[%clk 0:03:03]}  Be7 {[%clk 0:02:46]} 8. Nf3 {[%clk 0:03:04]}  c5 {[%clk 0:02:45]} 9. O-O {[%clk 0:03:04]}  a6 {[%clk 0:02:45]} 10. dxc5 {[%clk 0:03:02]}  Bxc5 {[%clk 0:02:42]} 11. b4 {[%clk 0:03:01]}  Be7 {[%clk 0:02:38]} 12. Qe2 {[%clk 0:02:48]}  b5 {[%clk 0:02:35]} 13. Bd3 {[%clk 0:02:48]}  Bb7 {[%clk 0:02:35]} 14. e4 {[%clk 0:02:49]}  e5 {[%clk 0:02:20]} 15. Bb2 {[%clk 0:02:02]}  Nbd7 {[%clk 0:02:16]} 16. Rad1 {[%clk 0:01:58]}  Qb6 {[%clk 0:02:12]} 17. Nh4 {[%clk 0:01:50]}  Rfe8 {[%clk 0:01:58]} 18. Nf5 {[%clk 0:01:41]}  Bf8 {[%clk 0:01:59]} 19. Bb1 {[%clk 0:01:32]}  a5 {[%clk 0:01:54]} 20. bxa5 {[%clk 0:01:31]}  Rxa5 {[%clk 0:01:53]} 21. Qf3 {[%clk 0:01:18]}  Bxa3 {[%clk 0:01:13]} 22. Nd5 {[%clk 0:00:36]}  Bxd5 {[%clk 0:00:57]} 23. Bxa3 {[%clk 0:00:35]}  b4 {[%clk 0:00:58]} 24. Bb2 {[%clk 0:00:34]}  Be6 {[%clk 0:00:51]} 25. Rd6 {[%clk 0:00:27]}  Qc7 {[%clk 0:00:47]} 26. Rfd1 {[%clk 0:00:27]}  Rc5 {[%clk 0:00:38]} 27. h4 {[%clk 0:00:21]}  Rc6 {[%clk 0:00:36]} 28. R6d2 {[%clk 0:00:17]}  Nc5 {[%clk 0:00:31]} 29. Nxg7 {[%clk 0:00:13]}  Kxg7 {[%clk 0:00:26]} 30. Qg3+ {[%clk 0:00:14]}  Kf8 {[%clk 0:00:18]} 31. Bxe5 {[%clk 0:00:13]}  Qe7 {[%clk 0:00:19]} 32. Qg5 {[%clk 0:00:09]}  Ncd7 {[%clk 0:00:16]} 33. Bb2 {[%clk 0:00:04]}  Rc3 {[%clk 0:00:15]} 34. Qh6+ {[%clk 0:00:03]}  Kg8 {[%clk 0:00:16]} 35. Rd4 {[%clk 0:00:03]}  Kh8 {[%clk 0:00:14]} 36. Bxc3 {[%clk 0:00:03]}  bxc3 {[%clk 0:00:14]} 37. R4d3 {[%clk 0:00:04]}  Ng8 {[%clk 0:00:14]} 38. Qe3 {[%clk 0:00:03]}  Qxh4 {[%clk 0:00:13]} 39. Rxc3 {[%clk 0:00:04]}  Ne5 {[%clk 0:00:13]} 40. Qg3 {[%clk 0:00:04]}  Qxg3 {[%clk 0:00:13]} 41. Rxg3 {[%clk 0:00:05]}  Ne7 {[%clk 0:00:13]} 42. f4 {[%clk 0:00:05]}  N5c6 {[%clk 0:00:12]} 43. f5 {[%clk 0:00:05]}  Bc4 {[%clk 0:00:13]} 44. Rc3 {[%clk 0:00:06]}  Ne5 {[%clk 0:00:13]} 45. Rd4 {[%clk 0:00:06]}  Rb8 {[%clk 0:00:11]} 46. Bc2 {[%clk 0:00:05]}  Rb4 {[%clk 0:00:10]} 47. Kf2 {[%clk 0:00:04]}  N7c6 {[%clk 0:00:11]} 48. Rd6 {[%clk 0:00:04]}  Kg7 {[%clk 0:00:11]} 49. Kg3 {[%clk 0:00:04]}  h6 {[%clk 0:00:11]} 50. Kf4 {[%clk 0:00:04]}  Rb2 {[%clk 0:00:10]} 51. Rg3+ {[%clk 0:00:05]}  Kf8 {[%clk 0:00:10]} 52. Rc3 {[%clk 0:00:05]}  Rb4 {[%clk 0:00:10]} 53. Rxh6 {[%clk 0:00:04]}  Ke7 {[%clk 0:00:09]} 54. g4 {[%clk 0:00:03]}  Rb2 {[%clk 0:00:07]} 55. Rxc6 {[%clk 0:00:03]}  Nxc6 {[%clk 0:00:06]} 56. Rxc4 {[%clk 0:00:03]}  Nb4 {[%clk 0:00:07]} 57. Ba4 {[%clk 0:00:03]}  Nd3+ {[%clk 0:00:07]} 58. Kg5 {[%clk 0:00:03]}  Ne5 {[%clk 0:00:08]} 59. Rc3 {[%clk 0:00:03]}  Rg2 {[%clk 0:00:07]} 60. Bd1 {[%clk 0:00:03]}  Rg1 {[%clk 0:00:07]} 61. Be2 {[%clk 0:00:04]}  Rg2 {[%clk 0:00:07]} 62. Re3 {[%clk 0:00:04]}  Rf2 {[%clk 0:00:08]} 63. Bd1 {[%clk 0:00:04]}  f6+ {[%clk 0:00:08]} 64. Kh4 {[%clk 0:00:04]}  Rf1 {[%clk 0:00:08]} 65. Be2 {[%clk 0:00:04]}  Rg1 {[%clk 0:00:08]} 66. Kh3 {[%clk 0:00:04]}  Nf7 {[%clk 0:00:08]} 67. Kh2 {[%clk 0:00:05]}  Rc1 {[%clk 0:00:08]} 68. Kg2 {[%clk 0:00:05]}  Ne5 {[%clk 0:00:08]} 69. Kg3 {[%clk 0:00:05]}  Rg1+ {[%clk 0:00:08]} 70. Kf2 {[%clk 0:00:05]}  Rh1 {[%clk 0:00:08]} 71. Kg2 {[%clk 0:00:05]}  Re1 {[%clk 0:00:08]} 72. Kf2 {[%clk 0:00:04]}  Rh1 {[%clk 0:00:08]} 73. Bf3 {[%clk 0:00:05]}  Rh2+ {[%clk 0:00:06]} 74. Kg3 {[%clk 0:00:05]}  Rd2 {[%clk 0:00:06]} 75. Ra3 {[%clk 0:00:05]}  Rb2 {[%clk 0:00:06]} 76. Kf4 {[%clk 0:00:04]}  Rf2 {[%clk 0:00:06]} 77. g5 {[%clk 0:00:05]}  Nxf3 {[%clk 0:00:06]} 78. Rxf3 {[%clk 0:00:04]}  fxg5+ {[%clk 0:00:06]} 79. Ke3 {[%clk 0:00:05]}  Rg2 {[%clk 0:00:06]} 80. e5 {[%clk 0:00:05]}  g4 {[%clk 0:00:06]} 81. Rf4 {[%clk 0:00:05]}  Rg1 {[%clk 0:00:07]} 82. Ra4 {[%clk 0:00:04]}  g3 {[%clk 0:00:06]} 83. Ra7+ {[%clk 0:00:04]}  Kf8 {[%clk 0:00:07]} 84. Ra8+ {[%clk 0:00:04]}  Kf7 {[%clk 0:00:06]} 85. e6+ {[%clk 0:00:05]}  Kf6 {[%clk 0:00:07]} 86. Rf8+ {[%clk 0:00:05]}  Ke7 {[%clk 0:00:07]} 87. Rf7+ {[%clk 0:00:05]}  Ke8 {[%clk 0:00:07]} 88. Kf3 {[%clk 0:00:05]}  Kd8 {[%clk 0:00:05]} 89. Rd7+ {[%clk 0:00:05]}  Ke8 {[%clk 0:00:05]} 90. Rf7 {[%clk 0:00:05]}  Kd8 {[%clk 0:00:05]} 91. Kg4 {[%clk 0:00:06]}  Ke8 {[%clk 0:00:04]} 92. Ra7 {[%clk 0:00:03]}  Rf1 {[%clk 0:00:03]} 93. Ra8+ {[%clk 0:00:02]}  Ke7 {[%clk 0:00:03]} 94. Ra7+ {[%clk 0:00:03]}  Ke8 {[%clk 0:00:03]} 95. Ra8+ {[%clk 0:00:02]}  Ke7 {[%clk 0:00:04]} 96. Ra2 {[%clk 0:00:03]}  Rf2 {[%clk 0:00:03]} 97. Ra7+ {[%clk 0:00:03]}  Ke8 {[%clk 0:00:03]} 98. Ra8+ {[%clk 0:00:03]}  Ke7 {[%clk 0:00:03]} 99. Ra7+ {[%clk 0:00:04]}  Ke8 {[%clk 0:00:04]} 100. Ra1 {[%clk 0:00:02]}  g2 {[%clk 0:00:04]} 101. Rg1 {[%clk 0:00:03]}  Ke7 {[%clk 0:00:04]} 102. Kg5 {[%clk 0:00:03]}  Re2 {[%clk 0:00:03]} 103. Kg6 {[%clk 0:00:04]}  Rf2 {[%clk 0:00:03]} 104. Kg5 {[%clk 0:00:04]}  Re2 {[%clk 0:00:03]} 105. Rb1 {[%clk 0:00:03]}  Rf2 {[%clk 0:00:03]} 106. Rb7+ {[%clk 0:00:03]}  Kd6 {[%clk 0:00:03]} 107. Rd7+ {[%clk 0:00:03]}  Ke5 {[%clk 0:00:02]} 108. Kg6 {[%clk 0:00:04]}  g1=Q+ {[%clk 0:00:02]} 109. Kf7 {[%clk 0:00:05]}  Rxf5+ {[%clk 0:00:03]} 110. Ke7 {[%clk 0:00:05]}  Qg7+ {[%clk 0:00:03]} 111. Kd8 {[%clk 0:00:06]}  Rf8+ {[%clk 0:00:03]} 112. Kc7 {[%clk 0:00:07]}  Qg3 {[%clk 0:00:03]} 113. e7 {[%clk 0:00:07]}  Ke6+ {[%clk 0:00:04]} 114. Kc6 {[%clk 0:00:08]}  Rc8+ {[%clk 0:00:05]} 115. Kb7 {[%clk 0:00:08]}  Kxd7 {[%clk 0:00:05]} 116. e8=Q+ {[%clk 0:00:09]}  Rxe8 {[%clk 0:00:05]} 117. Ka7 {[%clk 0:00:10]}  Rc8 {[%clk 0:00:06]} 0-1


[Site "https://www.chess.com"]

[Event "Titled Tuesday Blitz April 26 Late 2022"]
[White "Sarkar, Justin"]
[Black "Baches Garcia, Guillermo"]
[WhiteFideId "2010011"]
[BlackFideId "2209764"]
[WhiteElo "2038"]
[BlackElo "2507"]
[Result "1/2-1/2"]
[Round "08"]
[TimeControl "180+1"]
[Date "2022.04.26"]
[WhiteClock "0:00:28"]
[BlackClock "0:01:48"]

1. e4 {[%clk 0:02:59]}  c5 {[%clk 0:03:00]} 2. Nf3 {[%clk 0:02:59]}  d6 {[%clk 0:03:00]} 3. d4 {[%clk 0:02:55]}  cxd4 {[%clk 0:03:01]} 4. Nxd4 {[%clk 0:02:54]}  Nf6 {[%clk 0:03:01]} 5. Nc3 {[%clk 0:02:54]}  Nc6 {[%clk 0:03:02]} 6. Bg5 {[%clk 0:02:52]}  e6 {[%clk 0:03:02]} 7. Qd2 {[%clk 0:02:51]}  h6 {[%clk 0:03:03]} 8. Bxf6 {[%clk 0:02:47]}  gxf6 {[%clk 0:03:04]} 9. O-O-O {[%clk 0:02:33]}  a6 {[%clk 0:03:04]} 10. f4 {[%clk 0:02:29]}  Bd7 {[%clk 0:03:04]} 11. Be2 {[%clk 0:02:23]}  h5 {[%clk 0:03:04]} 12. Rhf1 {[%clk 0:02:17]}  Qb6 {[%clk 0:03:03]} 13. Nb3 {[%clk 0:02:05]}  O-O-O {[%clk 0:03:03]} 14. Rf3 {[%clk 0:02:03]}  Ne5 {[%clk 0:03:03]} 15. Rh3 {[%clk 0:01:54]}  h4 {[%clk 0:02:59]} 16. Kb1 {[%clk 0:01:46]}  Ng6 {[%clk 0:02:59]} 17. f5 {[%clk 0:01:34]}  Ne5 {[%clk 0:02:52]} 18. Qe1 {[%clk 0:01:16]}  Be7 {[%clk 0:02:28]} 19. Rxh4 {[%clk 0:01:12]}  Rhg8 {[%clk 0:02:25]} 20. g3 {[%clk 0:01:04]}  a5 {[%clk 0:02:23]} 21. a4 {[%clk 0:00:57]}  Kb8 {[%clk 0:02:21]} 22. Rf4 {[%clk 0:00:54]}  Rc8 {[%clk 0:02:20]} 23. Bb5 {[%clk 0:00:48]}  Bxb5 {[%clk 0:02:14]} 24. Nxb5 {[%clk 0:00:47]}  Nc4 {[%clk 0:02:12]} 25. Rf3 {[%clk 0:00:38]}  Rgd8 {[%clk 0:02:06]} 26. Rc3 {[%clk 0:00:31]}  d5 {[%clk 0:01:48]} 27. exd5 {[%clk 0:00:28]}  Bb4 {[%clk 0:01:48]} 1/2-1/2


[Site "https://www.chess.com"]

[Event "Titled Tuesday Blitz April 26 Late 2022"]
[White "Sernecki, Franciszek"]
[Black "Muradli, Mahammad"]
[WhiteFideId "1169297"]
[BlackFideId "13409301"]
[WhiteElo "2165"]
[BlackElo "2611"]
[Result "0-1"]
[Round "08"]
[TimeControl "180+1"]
[Date "2022.04.26"]
[WhiteClock "0:00:05"]
[BlackClock "0:00:41"]

1. d4 {[%clk 0:02:53]}  d6 {[%clk 0:03:00]} 2. e4 {[%clk 0:02:53]}  g6 {[%clk 0:03:00]} 3. c4 {[%clk 0:02:52]}  Nf6 {[%clk 0:03:00]} 4. Nc3 {[%clk 0:02:53]}  Bg7 {[%clk 0:03:00]} 5. Bg5 {[%clk 0:02:53]}  O-O {[%clk 0:03:00]} 6. Qd2 {[%clk 0:02:53]}  c5 {[%clk 0:03:00]} 7. d5 {[%clk 0:02:54]}  b5 {[%clk 0:03:01]} 8. cxb5 {[%clk 0:02:52]}  a6 {[%clk 0:03:01]} 9. Nf3 {[%clk 0:02:49]}  Qa5 {[%clk 0:03:00]} 10. a4 {[%clk 0:02:48]}  axb5 {[%clk 0:02:47]} 11. Bxb5 {[%clk 0:02:49]}  Nxe4 {[%clk 0:02:42]} 12. Nxe4 {[%clk 0:02:46]}  Qxb5 {[%clk 0:02:42]} 13. axb5 {[%clk 0:02:11]}  Rxa1+ {[%clk 0:02:34]} 14. Ke2 {[%clk 0:02:10]}  Rxh1 {[%clk 0:02:31]} 15. Ne1 {[%clk 0:02:03]}  Rxh2 {[%clk 0:02:22]} 16. Qa5 {[%clk 0:01:19]}  Nd7 {[%clk 0:02:04]} 17. Qc7 {[%clk 0:01:07]}  Re8 {[%clk 0:01:55]} 18. Kd1 {[%clk 0:00:55]}  Rh1 {[%clk 0:01:32]} 19. b6 {[%clk 0:00:52]}  Nf6 {[%clk 0:01:18]} 20. Ng3 {[%clk 0:00:37]}  Rg1 {[%clk 0:00:57]} 21. b7 {[%clk 0:00:24]}  Bxb7 {[%clk 0:00:58]} 22. Qxb7 {[%clk 0:00:25]}  Ng4 {[%clk 0:00:58]} 23. Qd7 {[%clk 0:00:15]}  Nxf2+ {[%clk 0:00:42]} 24. Ke2 {[%clk 0:00:14]}  Rb8 {[%clk 0:00:42]} 25. Kxf2 {[%clk 0:00:13]}  Bd4+ {[%clk 0:00:42]} 26. Be3 {[%clk 0:00:12]}  Bxe3+ {[%clk 0:00:42]} 27. Kxe3 {[%clk 0:00:12]}  Rxe1+ {[%clk 0:00:43]} 28. Kf2 {[%clk 0:00:13]}  Re5 {[%clk 0:00:42]} 29. b3 {[%clk 0:00:08]}  Rxb3 {[%clk 0:00:41]} 30. Qc8+ {[%clk 0:00:05]}  Kg7 {[%clk 0:00:41]} 31. Qg4 {[%clk 0:00:06]}  h5 {[%clk 0:00:39]} 32. Qc4 {[%clk 0:00:04]}  Rb2+ {[%clk 0:00:40]} 33. Kf3 {[%clk 0:00:03]}  Rb4 {[%clk 0:00:41]} 34. Qc3 {[%clk 0:00:02]}  Rd4 {[%clk 0:00:41]} 35. Ne2 {[%clk 0:00:02]}  Rdxd5 {[%clk 0:00:40]} 36. Nf4 {[%clk 0:00:02]}  Rd4 {[%clk 0:00:39]} 37. Ne2 {[%clk 0:00:02]}  Rde4 {[%clk 0:00:38]} 38. Ng3 {[%clk 0:00:01]}  Re3+ {[%clk 0:00:38]} 39. Qxe3 {[%clk 0:00:01]}  Rxe3+ {[%clk 0:00:39]} 40. Kxe3 {[%clk 0:00:02]}  f5 {[%clk 0:00:39]} 41. Ne2 {[%clk 0:00:01]}  Kf6 {[%clk 0:00:39]} 42. Nf4 {[%clk 0:00:02]}  h4 {[%clk 0:00:39]} 43. Nd5+ {[%clk 0:00:02]}  Ke6 {[%clk 0:00:39]} 44. Nc7+ {[%clk 0:00:03]}  Ke5 {[%clk 0:00:39]} 45. Kf3 {[%clk 0:00:02]}  g5 {[%clk 0:00:39]} 46. Nb5 {[%clk 0:00:02]}  e6 {[%clk 0:00:39]} 47. Nc3 {[%clk 0:00:03]}  d5 {[%clk 0:00:40]} 48. Ne2 {[%clk 0:00:04]}  g4+ {[%clk 0:00:40]} 49. Kf2 {[%clk 0:00:04]}  c4 {[%clk 0:00:41]} 50. Nc3 {[%clk 0:00:04]}  d4 {[%clk 0:00:41]} 51. Ne4 {[%clk 0:00:05]}  Kxe4 {[%clk 0:00:41]} 0-1


[Site "https://www.chess.com"]

[Event "Titled Tuesday Blitz April 26 Late 2022"]
[White "Spata, German"]
[Black "Mikhailov, Viacheslav"]
[WhiteFideId "113026"]
[BlackFideId "4187369"]
[WhiteElo "2238"]
[BlackElo "2381"]
[Result "1/2-1/2"]
[Round "08"]
[TimeControl "180+1"]
[Date "2022.04.26"]
[WhiteClock "0:00:06"]
[BlackClock "0:00:02"]

1. Nf3 {[%clk 0:03:00]}  Nf6 {[%clk 0:02:59]} 2. e3 {[%clk 0:03:01]}  g6 {[%clk 0:02:59]} 3. b3 {[%clk 0:03:01]}  Bg7 {[%clk 0:03:00]} 4. Bb2 {[%clk 0:03:02]}  O-O {[%clk 0:03:01]} 5. d4 {[%clk 0:03:03]}  d6 {[%clk 0:03:02]} 6. Be2 {[%clk 0:03:03]}  c5 {[%clk 0:03:02]} 7. O-O {[%clk 0:03:03]}  Nc6 {[%clk 0:03:03]} 8. c4 {[%clk 0:03:03]}  cxd4 {[%clk 0:03:03]} 9. Nxd4 {[%clk 0:03:04]}  Bd7 {[%clk 0:03:03]} 10. Nc3 {[%clk 0:03:05]}  Nxd4 {[%clk 0:03:02]} 11. Qxd4 {[%clk 0:03:05]}  Bc6 {[%clk 0:03:02]} 12. Nd5 {[%clk 0:03:06]}  Bxd5 {[%clk 0:02:57]} 13. cxd5 {[%clk 0:03:06]}  Qa5 {[%clk 0:02:58]} 14. Rfd1 {[%clk 0:03:02]}  Ne8 {[%clk 0:02:39]} 15. Qd2 {[%clk 0:03:00]}  Qxd2 {[%clk 0:02:38]} 16. Rxd2 {[%clk 0:03:01]}  Bxb2 {[%clk 0:02:37]} 17. Rxb2 {[%clk 0:03:01]}  Nf6 {[%clk 0:02:38]} 18. Rd1 {[%clk 0:02:46]}  Rfc8 {[%clk 0:02:37]} 19. f3 {[%clk 0:02:46]}  Rc3 {[%clk 0:02:35]} 20. e4 {[%clk 0:02:45]}  Rac8 {[%clk 0:02:35]} 21. Kf2 {[%clk 0:02:43]}  Nd7 {[%clk 0:02:35]} 22. Ke1 {[%clk 0:02:38]}  Ne5 {[%clk 0:02:23]} 23. Kd2 {[%clk 0:02:37]}  g5 {[%clk 0:02:24]} 24. Rf1 {[%clk 0:02:13]}  R3c5 {[%clk 0:02:02]} 25. Bd1 {[%clk 0:02:04]}  a5 {[%clk 0:01:57]} 26. Rc2 {[%clk 0:02:03]}  Rxc2+ {[%clk 0:01:51]} 27. Bxc2 {[%clk 0:02:03]}  b5 {[%clk 0:01:49]} 28. Rc1 {[%clk 0:01:59]}  b4 {[%clk 0:01:47]} 29. Bb1 {[%clk 0:01:43]}  Rxc1 {[%clk 0:01:46]} 30. Kxc1 {[%clk 0:01:43]}  Kg7 {[%clk 0:01:43]} 31. Kd2 {[%clk 0:01:43]}  h5 {[%clk 0:01:41]} 32. Ke3 {[%clk 0:01:43]}  Kf6 {[%clk 0:01:36]} 33. Bd3 {[%clk 0:01:38]}  Ng6 {[%clk 0:01:26]} 34. g3 {[%clk 0:01:38]}  Ke5 {[%clk 0:01:26]} 35. Bb5 {[%clk 0:01:34]}  f5 {[%clk 0:00:53]} 36. exf5 {[%clk 0:01:30]}  Kxf5 {[%clk 0:00:33]} 37. Bd3+ {[%clk 0:01:28]}  Kf6 {[%clk 0:00:34]} 38. Bxg6 {[%clk 0:01:25]}  Kxg6 {[%clk 0:00:35]} 39. f4 {[%clk 0:01:10]}  Kf5 {[%clk 0:00:24]} 40. fxg5 {[%clk 0:01:08]}  Kxg5 {[%clk 0:00:25]} 41. h3 {[%clk 0:01:03]}  Kf5 {[%clk 0:00:22]} 42. Kd4 {[%clk 0:01:01]}  Kf6 {[%clk 0:00:18]} 43. Ke4 {[%clk 0:01:01]}  Kg5 {[%clk 0:00:17]} 44. Ke3 {[%clk 0:00:46]}  Kf5 {[%clk 0:00:13]} 45. Kd4 {[%clk 0:00:16]}  Kf6 {[%clk 0:00:02]} 46. Ke4 {[%clk 0:00:12]}  Kg5 {[%clk 0:00:02]} 47. Ke3 {[%clk 0:00:06]} 1/2-1/2


[Site "https://www.chess.com"]

[Event "Titled Tuesday Blitz April 26 Late 2022"]
[White "Svane, Rasmus"]
[Black "Caruana, Fabiano"]
[WhiteFideId "4657101"]
[BlackFideId "2020009"]
[WhiteElo "2645"]
[BlackElo "2744"]
[Result "1/2-1/2"]
[Round "08"]
[TimeControl "180+1"]
[Date "2022.04.26"]
[WhiteClock "0:00:05"]
[BlackClock "0:00:09"]

1. Nf3 {[%clk 0:03:00]}  d5 {[%clk 0:02:59]} 2. g3 {[%clk 0:03:01]}  g6 {[%clk 0:02:59]} 3. Bg2 {[%clk 0:03:01]}  Bg7 {[%clk 0:03:00]} 4. d4 {[%clk 0:03:02]}  Nf6 {[%clk 0:02:59]} 5. O-O {[%clk 0:03:02]}  c6 {[%clk 0:03:00]} 6. c3 {[%clk 0:03:02]}  O-O {[%clk 0:02:59]} 7. Re1 {[%clk 0:03:03]}  Ne4 {[%clk 0:02:59]} 8. Nbd2 {[%clk 0:02:51]}  Bf5 {[%clk 0:02:52]} 9. Nh4 {[%clk 0:02:50]}  e6 {[%clk 0:02:45]} 10. f3 {[%clk 0:02:45]}  Nxd2 {[%clk 0:02:45]} 11. Bxd2 {[%clk 0:02:46]}  h5 {[%clk 0:02:34]} 12. e4 {[%clk 0:02:31]}  dxe4 {[%clk 0:02:34]} 13. fxe4 {[%clk 0:02:32]}  Bg4 {[%clk 0:02:33]} 14. Qb3 {[%clk 0:02:32]}  Nd7 {[%clk 0:02:25]} 15. h3 {[%clk 0:02:23]}  g5 {[%clk 0:02:25]} 16. Nf3 {[%clk 0:02:13]}  Bxf3 {[%clk 0:02:25]} 17. Bxf3 {[%clk 0:02:14]}  g4 {[%clk 0:02:25]} 18. hxg4 {[%clk 0:02:10]}  Ne5 {[%clk 0:02:25]} 19. Be2 {[%clk 0:01:50]}  Nxg4 {[%clk 0:02:24]} 20. Qd1 {[%clk 0:01:41]}  Bxd4+ {[%clk 0:02:12]} 21. Kg2 {[%clk 0:01:31]}  Be3 {[%clk 0:02:01]} 22. Bxg4 {[%clk 0:01:28]}  Bxd2 {[%clk 0:01:44]} 23. Re2 {[%clk 0:01:28]}  Bxc3 {[%clk 0:01:39]} 24. Bxh5 {[%clk 0:01:19]}  Be5 {[%clk 0:01:30]} 25. Rd2 {[%clk 0:01:05]}  Qg5 {[%clk 0:01:25]} 26. Qg4 {[%clk 0:01:05]}  Qxg4 {[%clk 0:01:24]} 27. Bxg4 {[%clk 0:01:06]}  Kg7 {[%clk 0:00:55]} 28. Rd7 {[%clk 0:01:01]}  Rad8 {[%clk 0:00:30]} 29. Rad1 {[%clk 0:01:00]}  Rxd7 {[%clk 0:00:30]} 30. Rxd7 {[%clk 0:01:01]}  Kg6 {[%clk 0:00:31]} 31. Rxb7 {[%clk 0:00:54]}  Rd8 {[%clk 0:00:31]} 32. Be2 {[%clk 0:00:33]}  Rd2 {[%clk 0:00:27]} 33. Kf3 {[%clk 0:00:33]}  a5 {[%clk 0:00:22]} 34. Rb6 {[%clk 0:00:32]}  Bxb2 {[%clk 0:00:17]} 35. Rxc6 {[%clk 0:00:31]}  Bd4 {[%clk 0:00:16]} 36. Rc4 {[%clk 0:00:18]}  Kf6 {[%clk 0:00:12]} 37. Ra4 {[%clk 0:00:18]}  Bb6 {[%clk 0:00:12]} 38. Bc4 {[%clk 0:00:12]}  Rf2+ {[%clk 0:00:11]} 39. Kg4 {[%clk 0:00:12]}  Bc7 {[%clk 0:00:11]} 40. Ra3 {[%clk 0:00:10]}  Rd2 {[%clk 0:00:04]} 41. Rf3+ {[%clk 0:00:10]}  Kg7 {[%clk 0:00:05]} 42. Bb3 {[%clk 0:00:08]}  Rd4 {[%clk 0:00:05]} 43. Re3 {[%clk 0:00:08]}  a4 {[%clk 0:00:05]} 44. Bc2 {[%clk 0:00:08]}  Bd6 {[%clk 0:00:05]} 45. Kf3 {[%clk 0:00:08]}  Rc4 {[%clk 0:00:04]} 46. Bd1 {[%clk 0:00:08]}  Be5 {[%clk 0:00:04]} 47. Rd3 {[%clk 0:00:08]}  Rb4 {[%clk 0:00:02]} 48. Ra3 {[%clk 0:00:09]}  Rb2 {[%clk 0:00:03]} 49. Bxa4 {[%clk 0:00:07]}  Rd2 {[%clk 0:00:03]} 50. Bb5 {[%clk 0:00:07]}  Bd6 {[%clk 0:00:03]} 51. Rd3 {[%clk 0:00:07]}  Rxd3+ {[%clk 0:00:03]} 52. Bxd3 {[%clk 0:00:07]}  Kf6 {[%clk 0:00:04]} 53. a4 {[%clk 0:00:08]}  Ke5 {[%clk 0:00:04]} 54. a5 {[%clk 0:00:09]}  Bc5 {[%clk 0:00:05]} 55. a6 {[%clk 0:00:09]}  Ba7 {[%clk 0:00:05]} 56. Bb5 {[%clk 0:00:09]}  f5 {[%clk 0:00:06]} 57. exf5 {[%clk 0:00:09]}  exf5 {[%clk 0:00:06]} 58. Bd3 {[%clk 0:00:09]}  Bb8 {[%clk 0:00:06]} 59. Bc2 {[%clk 0:00:07]}  Kf6 {[%clk 0:00:06]} 60. Ke3 {[%clk 0:00:07]}  Kg5 {[%clk 0:00:07]} 61. Bd1 {[%clk 0:00:07]}  Ba7+ {[%clk 0:00:07]} 62. Kd3 {[%clk 0:00:08]}  Bb8 {[%clk 0:00:07]} 63. Kc4 {[%clk 0:00:08]}  Kf6 {[%clk 0:00:06]} 64. Kd5 {[%clk 0:00:08]}  Ba7 {[%clk 0:00:06]} 65. Kc6 {[%clk 0:00:09]}  Ke5 {[%clk 0:00:07]} 66. Bc2 {[%clk 0:00:05]}  f4 {[%clk 0:00:07]} 67. g4 {[%clk 0:00:06]}  f3 {[%clk 0:00:07]} 68. g5 {[%clk 0:00:03]}  f2 {[%clk 0:00:07]} 69. Bd3 {[%clk 0:00:04]}  f1=Q {[%clk 0:00:07]} 70. Bxf1 {[%clk 0:00:04]}  Kf5 {[%clk 0:00:07]} 71. Kb7 {[%clk 0:00:04]}  Bd4 {[%clk 0:00:08]} 72. g6 {[%clk 0:00:04]}  Kxg6 {[%clk 0:00:07]} 73. Bd3+ {[%clk 0:00:04]}  Kf6 {[%clk 0:00:07]} 74. Kc6 {[%clk 0:00:05]}  Ke7 {[%clk 0:00:08]} 75. Kc7 {[%clk 0:00:04]}  Be3 {[%clk 0:00:08]} 76. Kb7 {[%clk 0:00:04]}  Bd4 {[%clk 0:00:09]} 77. a7 {[%clk 0:00:05]}  Bxa7 {[%clk 0:00:09]} 1/2-1/2


[Site "https://www.chess.com"]

[Event "Titled Tuesday Blitz April 26 Late 2022"]
[White "Tristan, Leonardo"]
[Black "Martic, Ivan"]
[WhiteFideId "113816"]
[BlackFideId "929301"]
[WhiteElo "2404"]
[BlackElo "2317"]
[Result "1-0"]
[Round "08"]
[TimeControl "180+1"]
[Date "2022.04.26"]
[WhiteClock "0:00:03"]
[BlackClock "0:00:04"]

1. d4 {[%clk 0:03:00]}  Nf6 {[%clk 0:02:59]} 2. Nf3 {[%clk 0:03:01]}  d5 {[%clk 0:02:58]} 3. Bf4 {[%clk 0:03:01]}  c5 {[%clk 0:02:57]} 4. e3 {[%clk 0:03:02]}  Nc6 {[%clk 0:02:57]} 5. Nbd2 {[%clk 0:03:02]}  cxd4 {[%clk 0:02:55]} 6. exd4 {[%clk 0:03:03]}  Bg4 {[%clk 0:02:52]} 7. c3 {[%clk 0:03:03]}  e6 {[%clk 0:02:50]} 8. Qb3 {[%clk 0:03:03]}  Qc8 {[%clk 0:02:50]} 9. Bd3 {[%clk 0:03:03]}  Be7 {[%clk 0:02:47]} 10. O-O {[%clk 0:03:03]}  O-O {[%clk 0:02:47]} 11. Rae1 {[%clk 0:03:04]}  Bh5 {[%clk 0:02:46]} 12. Ne5 {[%clk 0:03:04]}  Nxe5 {[%clk 0:02:39]} 13. Bxe5 {[%clk 0:02:53]}  a6 {[%clk 0:02:36]} 14. Re3 {[%clk 0:02:52]}  b5 {[%clk 0:02:33]} 15. Rh3 {[%clk 0:02:51]}  Bg6 {[%clk 0:02:32]} 16. Bxg6 {[%clk 0:02:51]}  hxg6 {[%clk 0:02:33]} 17. a3 {[%clk 0:02:48]}  Nd7 {[%clk 0:02:31]} 18. Bf4 {[%clk 0:02:44]}  g5 {[%clk 0:02:22]} 19. Be3 {[%clk 0:02:42]}  f6 {[%clk 0:02:17]} 20. Qd1 {[%clk 0:02:41]}  Qe8 {[%clk 0:02:14]} 21. f4 {[%clk 0:02:38]}  Qg6 {[%clk 0:02:03]} 22. Rg3 {[%clk 0:02:34]}  Bd6 {[%clk 0:02:01]} 23. h4 {[%clk 0:02:24]}  Qd3 {[%clk 0:01:54]} 24. Qg4 {[%clk 0:02:24]}  Rae8 {[%clk 0:01:42]} 25. hxg5 {[%clk 0:02:21]}  fxg5 {[%clk 0:01:41]} 26. Qxg5 {[%clk 0:02:20]}  Rf7 {[%clk 0:01:40]} 27. Rh3 {[%clk 0:02:09]}  Nf6 {[%clk 0:01:28]} 28. Qh4 {[%clk 0:01:59]}  Kf8 {[%clk 0:01:28]} 29. f5 {[%clk 0:01:59]}  Qc2 {[%clk 0:01:16]} 30. fxe6 {[%clk 0:00:58]}  Rxe6 {[%clk 0:01:17]} 31. Bg5 {[%clk 0:00:56]}  Qxb2 {[%clk 0:01:10]} 32. Nf3 {[%clk 0:00:50]}  Re2 {[%clk 0:01:03]} 33. Qh8+ {[%clk 0:00:33]}  Ng8 {[%clk 0:00:49]} 34. Rh2 {[%clk 0:00:25]}  Bxh2+ {[%clk 0:00:39]} 35. Qxh2 {[%clk 0:00:26]}  Qxa3 {[%clk 0:00:30]} 36. Bf4 {[%clk 0:00:19]}  Re6 {[%clk 0:00:19]} 37. Ng5 {[%clk 0:00:16]}  Qe7 {[%clk 0:00:12]} 38. Qh5 {[%clk 0:00:10]}  Re1 {[%clk 0:00:08]} 39. Rxe1 {[%clk 0:00:02]}  Qxe1+ {[%clk 0:00:09]} 40. Kh2 {[%clk 0:00:02]}  Qe7 {[%clk 0:00:07]} 41. Bd6 {[%clk 0:00:02]}  Qxd6+ {[%clk 0:00:07]} 42. g3 {[%clk 0:00:03]}  Rf2+ {[%clk 0:00:06]} 43. Kh3 {[%clk 0:00:03]}  Qd7+ {[%clk 0:00:05]} 44. g4 {[%clk 0:00:04]}  Qe7 {[%clk 0:00:04]} 45. Nh7# {[%clk 0:00:03]} 1-0


[Site "https://www.chess.com"]